fUSD/lending_fUSD_20240222
["ID","MTS","AMOUNT","RATE_DAILY","PERIOD"]
[314852671,1708594243632,-151.022217,0.00035238,2]
[314852672,1708594243642,-151.022217,0.00035238,2]
[314852673,1708594243652,-151.022217,0.00035238,2]
[314852674,1708594243663,-151.022217,0.00035238,2]
[314852675,1708594243674,-151.022217,0.00035238,2]
[314852676,1708594243683,-151.022217,0.00035238,2]
[314852677,1708594243692,-151.022217,0.00035238,2]
[314852678,1708594243701,-151.022217,0.00035238,2]
[314852679,1708594243711,-3235.2996,0.0003524,2]
[314852680,1708594243720,-100000.0,0.0003524,2]
[314852681,1708594243731,-151.88658938,0.00035311,2]
[314852682,1708594243751,-800.0,0.00035331,2]
[314852683,1708594243761,-175.45429275,0.00035338,4]
[314852684,1708594243770,-500.0326563,0.00035338,4]
[314852685,1708594243780,-329.40622053,0.00035338,4]
[314852686,1708594243790,-195.6495583,0.00035338,4]
[314852687,1708594243800,-2609.646811,0.00035342,2]
[314852688,1708594243809,-150.0,0.00035342,2]
[314852689,1708594243820,-304.57,0.00035342,2]
[314852690,1708594243830,-150.0,0.00035342,2]
[314852691,1708594243840,-150.0,0.00035342,2]
[314852692,1708594243849,-344.29,0.00035342,2]
[314852693,1708594243859,-423.57,0.00035342,2]
[314852694,1708594243869,-423.57,0.00035342,2]
[314852695,1708594243880,-344.29,0.00035342,2]
[314852696,1708594243890,-150.0,0.00035342,2]
[314852697,1708594243901,-150.0,0.00035342,2]
[314852698,1708594243911,-423.57,0.00035342,2]
[314852699,1708594243921,-344.29,0.00035342,2]
[314852700,1708594243930,-423.57,0.00035342,2]
[314852701,1708594243940,-701.46532572,0.00035376,4]
[314852702,1708594243950,-613.63,0.00035418,2]
[314852703,1708594243960,-157.0,0.00035425,5]
[314852704,1708594243969,-152.0,0.00035454,5]
[314852705,1708594243979,-173.2364096,0.0003551,2]
[314852706,1708594243989,-213.33322348,0.00035516,8]
[314852707,1708594243998,-528.22073562,0.00035516,2]
[314852708,1708594244009,-151.88658938,0.00035516,2]
[314852709,1708594244018,-175.1212524,0.00035542,7]
[314852710,1708594244028,-302.0,0.00035565,2]
[314852711,1708594244038,-2694.0,0.00035565,2]
[314852712,1708594244047,-955.0,0.00035565,2]
[314852713,1708594244057,-216.0,0.00035565,2]
[314852714,1708594244066,-2982.453499,0.00035589,2]
[314852715,1708594244076,-613.63,0.00035598,2]
[314852716,1708594244085,-521.25,0.000356,2]
[314852717,1708594244094,-200.0,0.00035603,3]
[314852718,1708594244103,-800.0,0.00035603,2]
[314852719,1708594244112,-200.0,0.00035603,10]
[314852720,1708594244121,-500.0,0.00035603,10]
[314852721,1708594244131,-200.0,0.00035603,10]
[314852722,1708594244140,-2663.2001,0.00035614,4]
[314852723,1708594244149,-199.21278174,0.00035614,4]
[314852724,1708594244159,-150.0,0.00035615,30]
[314852725,1708594244168,-150.0,0.00035615,30]
[314852726,1708594244177,-175.84622854,0.00035616,2]
[314852727,1708594244187,-364.20944685,0.00035616,2]
[314852728,1708594244197,-500.0,0.00035616,2]
[314852729,1708594244206,-487.43916834,0.00035616,2]
[314852730,1708594244215,-614.28138776,0.00035616,2]
[314852731,1708594244225,-505.14821963,0.00035616,2]
[314852732,1708594244234,-500.0,0.00035616,2]
[314852733,1708594244243,-500.0,0.00035616,2]
[314852734,1708594244253,-500.0,0.00035616,2]
[314852735,1708594244263,-500.0,0.00035616,2]
[314852736,1708594244272,-174.5049175,0.00035616,2]
[314852737,1708594244283,-500.0,0.00035616,2]
[314852738,1708594244295,-500.0,0.00035616,2]
[314852739,1708594244304,-500.0,0.00035616,2]
[314852740,1708594244313,-500.0,0.00035616,2]
[314852741,1708594244323,-500.0,0.00035616,2]
[314852742,1708594244331,-500.0,0.00035616,2]
[314852743,1708594244341,-500.0,0.00035616,2]
[314852744,1708594244350,-500.0,0.00035616,2]
[314852745,1708594244359,-500.0,0.00035616,2]
[314852746,1708594244368,-500.0,0.00035616,2]
[314852747,1708594244378,-500.0,0.00035616,2]
[314852748,1708594244387,-500.0,0.00035616,2]
[314852749,1708594244396,-479.24500323,0.00035616,2]
[314852750,1708594244405,-500.0,0.00035616,2]
[314852751,1708594244415,-500.0,0.00035616,2]
[314852752,1708594244425,-608.9618344,0.00035616,2]
[314852753,1708594244434,-500.0,0.00035616,2]
[314852754,1708594244444,-500.0,0.00035616,2]
[314852755,1708594244453,-540.85,0.00035616,2]
[314852756,1708594244463,-500.0,0.00035616,2]
[314852757,1708594244474,-502.58968469,0.00035616,2]
[314852758,1708594244484,-500.0,0.00035616,2]
[314852759,1708594244493,-500.0,0.00035616,2]
[314852760,1708594244503,-500.0,0.00035616,2]
[314852761,1708594244514,-506.54417946,0.00035616,2]
[314852762,1708594244522,-500.0,0.00035616,2]
[314852763,1708594244531,-500.0,0.00035616,2]
[314852764,1708594244542,-500.0,0.00035616,2]
[314852765,1708594244552,-500.0,0.00035616,2]
[314852766,1708594244561,-500.0,0.00035616,2]
[314852767,1708594244570,-500.0,0.00035616,2]
[314852768,1708594244579,-500.0,0.00035616,2]
[314852769,1708594244591,-500.0,0.00035616,2]
[314852770,1708594244601,-500.0,0.00035616,2]
[314852771,1708594244610,-500.0,0.00035616,2]
[314852772,1708594244620,-500.0,0.00035616,2]
[314852774,1708594244629,-500.0,0.00035616,2]
[314852776,1708594244638,-500.0,0.00035616,2]
[314852778,1708594244648,-500.0,0.00035616,2]
[314852779,1708594244658,-500.0,0.00035616,2]
[314852780,1708594244667,-500.0,0.00035616,2]
[314852781,1708594244678,-500.0,0.00035616,2]
[314852783,1708594244687,-500.0,0.00035616,2]
[314852785,1708594244697,-515.69087981,0.00035616,2]
[314852787,1708594244706,-500.0,0.00035616,2]
[314852789,1708594244715,-537.87,0.00035616,2]
[314852791,1708594244724,-500.0,0.00035616,2]
[314852792,1708594244733,-500.0,0.00035616,2]
[314852794,1708594244742,-500.0,0.00035616,2]
[314852796,1708594244752,-500.0,0.00035616,2]
[314852797,1708594244763,-500.0,0.00035616,2]
[314852798,1708594244773,-500.0,0.00035616,2]
[314852799,1708594244783,-500.0,0.00035616,2]
[314852800,1708594244792,-500.0,0.00035616,2]
[314852801,1708594244801,-500.0,0.00035616,2]
[314852802,1708594244810,-500.0,0.00035616,2]
[314852803,1708594244820,-500.0,0.00035616,2]
[314852804,1708594244829,-500.0,0.00035616,2]
[314852805,1708594244839,-513.99319012,0.00035616,2]
[314852806,1708594244848,-500.0,0.00035616,2]
[314852807,1708594244858,-211.64975722,0.00035616,2]
[314852808,1708594244867,-500.0,0.00035616,2]
[314852809,1708594244878,-595.93892117,0.00035616,2]
[314852810,1708594244888,-500.0,0.00035616,2]
[314852811,1708594244897,-513.24,0.00035616,2]
[314852812,1708594244907,-500.0,0.00035616,2]
[314852813,1708594244917,-500.0,0.00035616,2]
[314852814,1708594244926,-500.0,0.00035616,2]
[314852815,1708594244935,-500.0,0.00035616,2]
[314852816,1708594244945,-500.0,0.00035616,2]
[314852817,1708594244954,-500.0,0.00035616,2]
[314852818,1708594244965,-500.0,0.00035616,2]
[314852819,1708594244975,-561.25583977,0.00035616,2]
[314852820,1708594244985,-500.0,0.00035616,2]
[314852821,1708594244994,-500.0,0.00035616,2]
[314852822,1708594245003,-500.0,0.00035616,2]
[314852823,1708594245014,-500.0,0.00035616,2]
[314852824,1708594245023,-527.37,0.00035616,2]
[314852825,1708594245032,-500.0,0.00035616,2]
[314852826,1708594245042,-500.0,0.00035616,2]
[314852827,1708594245051,-500.0,0.00035616,2]
[314852828,1708594245060,-500.0,0.00035616,2]
[314852829,1708594245070,-500.0,0.00035616,2]
[314852830,1708594245079,-500.0,0.00035616,2]
[314852831,1708594245089,-500.0,0.00035616,2]
[314852832,1708594245099,-555.61,0.00035616,2]
[314852833,1708594245109,-500.0,0.00035616,2]
[314852834,1708594245118,-541.12,0.00035616,2]
[314852835,1708594245128,-500.0,0.00035616,2]
[314852836,1708594245137,-500.0,0.00035616,2]
[314852837,1708594245147,-500.0,0.00035616,2]
[314852838,1708594245156,-500.0,0.00035616,2]
[314852839,1708594245166,-500.0,0.00035616,2]
[314852840,1708594245175,-500.0,0.00035616,2]
[314852841,1708594245185,-500.0,0.00035616,2]
[314852842,1708594245195,-500.0,0.00035616,2]
[314852843,1708594245205,-500.0,0.00035616,2]
[314852844,1708594245215,-500.0,0.00035616,2]
[314852845,1708594245224,-500.0,0.00035616,2]
[314852846,1708594245233,-480.95466401,0.00035616,2]
[314852847,1708594245243,-500.0,0.00035616,2]
[314852848,1708594245252,-500.0,0.00035616,2]
[314852849,1708594245262,-500.0,0.00035616,2]
[314852850,1708594245271,-500.0,0.00035616,2]
[314852851,1708594245280,-507.18,0.00035616,2]
[314852852,1708594245290,-500.0,0.00035616,2]
[314852853,1708594245299,-500.0,0.00035616,2]
[314852854,1708594245308,-502.22710448,0.00035616,2]
[314852855,1708594245318,-581.52,0.00035616,2]
[314852856,1708594245327,-500.0,0.00035616,2]
[314852857,1708594245337,-500.0,0.00035616,2]
[314852858,1708594245346,-500.0,0.00035616,2]
[314852859,1708594245356,-202.50054886,0.00035616,2]
[314852860,1708594245694,-500.0,0.00035616,2]
[314852862,1708594245723,-205.92050345,0.00035616,2]
[314852863,1708594245733,-500.0,0.00035616,2]
[314852864,1708594245742,-500.0,0.00035616,2]
[314852865,1708594245752,-608.74,0.00035616,2]
[314852866,1708594245762,-500.0,0.00035616,2]
[314852867,1708594245772,-500.0,0.00035616,2]
[314852868,1708594245781,-500.0,0.00035616,2]
[314852869,1708594245790,-500.0,0.00035616,2]
[314852870,1708594245800,-500.0,0.00035616,2]
[314852871,1708594245809,-565.79232342,0.00035616,2]
[314852872,1708594245819,-473.79118417,0.00035616,2]
[314852873,1708594245828,-500.0,0.00035616,2]
[314852874,1708594245838,-500.0,0.00035616,2]
[314852875,1708594245847,-500.0,0.00035616,2]
[314852876,1708594245856,-500.0,0.00035616,2]
[314852877,1708594245866,-500.0,0.00035616,2]
[314852878,1708594245876,-500.0,0.00035616,2]
[314852879,1708594245886,-398.88182481,0.00035616,2]
[314852880,1708594245895,-500.0,0.00035616,2]
[314852881,1708594245905,-500.0,0.00035616,2]
[314852882,1708594245914,-500.0,0.00035616,2]
[314852883,1708594245924,-500.0,0.00035616,2]
[314852884,1708594245933,-500.0,0.00035616,2]
[314852885,1708594245943,-543.26422418,0.00035616,2]
[314852886,1708594245954,-500.0,0.00035616,2]
[314852887,1708594245965,-500.0,0.00035616,2]
[314852888,1708594245975,-507.80163801,0.00035616,2]
[314852889,1708594245985,-500.0,0.00035616,2]
[314852890,1708594245996,-500.0,0.00035616,2]
[314852891,1708594246007,-500.0,0.00035616,2]
[314852892,1708594246020,-500.0,0.00035616,2]
[314852893,1708594246030,-544.27,0.00035616,2]
[314852894,1708594246040,-500.0,0.00035616,2]
[314852895,1708594246050,-500.0,0.00035616,2]
[314852896,1708594246061,-500.0,0.00035616,2]
[314852897,1708594246071,-500.0,0.00035616,2]
[314852898,1708594246081,-500.0,0.00035616,2]
[314852899,1708594246090,-630.72,0.00035616,2]
[314852900,1708594246100,-500.0,0.00035616,2]
[314852901,1708594246109,-500.0,0.00035616,2]
[314852902,1708594246119,-500.0,0.00035616,2]
[314852903,1708594246129,-500.0,0.00035616,2]
[314852904,1708594246138,-555.63936067,0.00035616,2]
[314852905,1708594246149,-500.0,0.00035616,2]
[314852906,1708594246158,-500.0,0.00035616,2]
[314852907,1708594246167,-500.0,0.00035616,2]
[314852908,1708594246177,-500.0,0.00035616,2]
[314852909,1708594246187,-500.0,0.00035616,2]
[314852910,1708594246196,-500.0,0.00035616,2]
[314852911,1708594246206,-500.0,0.00035616,2]
[314852912,1708594246216,-500.0,0.00035616,2]
[314852913,1708594246226,-500.0,0.00035616,2]
[314852914,1708594246235,-500.0,0.00035616,2]
[314852915,1708594246245,-500.0,0.00035616,2]
[314852916,1708594246255,-500.0,0.00035616,2]
[314852917,1708594246268,-500.0,0.00035616,2]
[314852918,1708594246277,-500.0,0.00035616,2]
[314852919,1708594246287,-1213.3,0.00035616,2]
[314852920,1708594246297,-500.0,0.00035616,2]
[314852921,1708594246307,-500.0,0.00035616,2]
[314852922,1708594246317,-500.0,0.00035616,2]
[314852923,1708594246326,-500.0,0.00035616,2]
[314852925,1708594246336,-500.0,0.00035616,2]
[314852927,1708594246345,-834.66,0.00035616,2]
[314852928,1708594246354,-503.54789715,0.00035616,2]
[314852929,1708594246363,-500.0,0.00035616,2]
[314852930,1708594246372,-500.0,0.00035616,2]
[314852931,1708594246381,-500.0,0.00035616,2]
[314852932,1708594246391,-500.0,0.00035616,2]
[314852933,1708594246400,-538.98,0.00035616,2]
[314852934,1708594246409,-500.0,0.00035616,2]
[314852935,1708594246419,-559.67,0.00035616,2]
[314852936,1708594246428,-1947.28,0.00035616,2]
[314852937,1708594246437,-500.0,0.00035616,2]
[314852938,1708594246447,-500.0,0.00035616,2]
[314852939,1708594246456,-500.0,0.00035616,2]
[314852940,1708594246468,-500.0,0.00035616,2]
[314852941,1708594246478,-500.0,0.00035616,2]
[314852942,1708594246487,-500.0,0.00035616,2]
[314852943,1708594246497,-500.0,0.00035616,2]
[314852944,1708594246507,-500.0,0.00035616,2]
[314852945,1708594246519,-500.0,0.00035616,2]
[314852946,1708594246529,-500.0,0.00035616,2]
[314852947,1708594246539,-500.0,0.00035616,2]
[314852948,1708594246550,-500.0,0.00035616,2]
[314852949,1708594246560,-500.0,0.00035616,2]
[314852950,1708594246570,-500.0,0.00035616,2]
[314852951,1708594246579,-500.0,0.00035616,2]
[314852952,1708594246588,-500.0,0.00035616,2]
[314852953,1708594246598,-500.0,0.00035616,2]
[314852954,1708594246607,-732.12,0.00035616,2]
[314852955,1708594246616,-500.0,0.00035616,2]
[314852956,1708594246625,-500.0,0.00035616,2]
[314852957,1708594246635,-500.0,0.00035616,2]
[314852958,1708594246645,-500.0,0.00035616,2]
[314852959,1708594246654,-500.0,0.00035616,2]
[314852960,1708594246664,-500.0,0.00035616,2]
[314852961,1708594246673,-681.33,0.00035616,2]
[314852962,1708594246683,-500.0,0.00035616,2]
[314852963,1708594246693,-500.0,0.00035616,2]
[314852964,1708594246702,-500.0,0.00035616,2]
[314852965,1708594246712,-500.0,0.00035616,2]
[314852966,1708594246721,-500.0,0.00035616,2]
[314852967,1708594246730,-500.0,0.00035616,2]
[314852968,1708594246740,-500.0,0.00035616,2]
[314852969,1708594246749,-500.0,0.00035616,2]
[314852970,1708594246759,-517.28,0.00035616,2]
[314852971,1708594246770,-651.13,0.00035616,2]
[314852972,1708594246780,-500.0,0.00035616,2]
[314852973,1708594246790,-500.0,0.00035616,2]
[314852974,1708594246800,-500.0,0.00035616,2]
[314852975,1708594246809,-471.52525046,0.00035616,2]
[314852976,1708594246819,-500.0,0.00035616,2]
[314852977,1708594246828,-500.0,0.00035616,2]
[314852978,1708594246838,-500.0,0.00035616,2]
[314852979,1708594246847,-853.38,0.00035616,2]
[314852980,1708594246858,-500.0,0.00035616,2]
[314852981,1708594246867,-509.75,0.00035616,2]
[314852982,1708594246876,-500.0,0.00035616,2]
[314852983,1708594246885,-500.0,0.00035616,2]
[314852984,1708594246894,-500.0,0.00035616,2]
[314852985,1708594246903,-500.0,0.00035616,2]
[314852986,1708594246912,-500.0,0.00035616,2]
[314852987,1708594246921,-500.0,0.00035616,2]
[314852988,1708594246931,-505.22095577,0.00035616,2]
[314852989,1708594246940,-500.0,0.00035616,2]
[314852990,1708594246950,-500.0,0.00035616,2]
[314852991,1708594246960,-500.0,0.00035616,2]
[314852992,1708594246970,-500.0,0.00035616,2]
[314852993,1708594246979,-921.93,0.00035616,2]
[314852994,1708594246989,-500.0,0.00035616,2]
[314852995,1708594246999,-500.0,0.00035616,2]
[314852996,1708594247009,-614.69,0.00035616,2]
[314852997,1708594247021,-500.0,0.00035616,2]
[314852998,1708594247031,-500.0,0.00035616,2]
[314852999,1708594247041,-500.0,0.00035616,2]
[314853000,1708594247050,-500.0,0.00035616,2]
[314853001,1708594247060,-500.0,0.00035616,2]
[314853002,1708594247070,-500.0,0.00035616,2]
[314853003,1708594247079,-500.0,0.00035616,2]
[314853004,1708594247088,-500.0,0.00035616,2]
[314853005,1708594247098,-500.0,0.00035616,2]
[314853006,1708594247107,-500.0,0.00035616,2]
[314853007,1708594247117,-500.0,0.00035616,2]
[314853008,1708594247126,-500.0,0.00035616,2]
[314853009,1708594247136,-526.08,0.00035616,2]
[314853010,1708594247145,-526.14595899,0.00035616,2]
[314853011,1708594247155,-500.0,0.00035616,2]
[314853012,1708594247164,-500.0,0.00035616,2]
[314853013,1708594247174,-503.12358295,0.00035616,2]
[314853014,1708594247183,-500.0,0.00035616,2]
[314853015,1708594247192,-500.0,0.00035616,2]
[314853016,1708594247202,-513.22,0.00035616,2]
[314853017,1708594247212,-739.17,0.00035616,2]
[314853018,1708594247221,-500.0,0.00035616,2]
[314853019,1708594247232,-500.0,0.00035616,2]
[314853020,1708594247241,-996.12,0.00035616,2]
[314853021,1708594247251,-579.31,0.00035616,2]
[314853022,1708594247260,-500.0,0.00035616,2]
[314853023,1708594247272,-500.0,0.00035616,2]
[314853024,1708594247282,-500.0,0.00035616,2]
[314853025,1708594247292,-500.0,0.00035616,2]
[314853026,1708594247302,-500.0,0.00035616,2]
[314853027,1708594247311,-500.0,0.00035616,2]
[314853028,1708594247320,-500.0,0.00035616,2]
[314853029,1708594247330,-605.81,0.00035616,2]
[314853030,1708594247339,-608.37467421,0.00035616,2]
[314853031,1708594247348,-508.51880533,0.00035616,2]
[314853032,1708594247358,-500.0,0.00035616,2]
[314853033,1708594247367,-150.0,0.00035616,2]
[314853034,1708594247376,-500.0,0.00035616,2]
[314853035,1708594247386,-500.0,0.00035616,2]
[314853036,1708594247395,-500.0,0.00035616,2]
[314853037,1708594247405,-503.73483478,0.00035616,2]
[314853038,1708594247413,-945.07,0.00035616,2]
[314853039,1708594247423,-500.0,0.00035616,2]
[314853040,1708594247432,-500.0,0.00035616,2]
[314853041,1708594247442,-500.0,0.00035616,2]
[314853042,1708594247455,-500.0,0.00035616,2]
[314853043,1708594247464,-500.0,0.00035616,2]
[314853044,1708594247473,-602.07719753,0.00035616,2]
[314853045,1708594247483,-500.0,0.00035616,2]
[314853046,1708594247492,-522.63,0.00035616,2]
[314853047,1708594247501,-501.08022125,0.00035616,2]
[314853048,1708594247511,-519.07887324,0.00035616,2]
[314853049,1708594247521,-500.0,0.00035616,2]
[314853050,1708594247531,-1244.45,0.00035616,2]
[314853051,1708594247540,-500.0,0.00035616,2]
[314853052,1708594247550,-500.0,0.00035616,2]
[314853053,1708594247559,-500.0,0.00035616,2]
[314853054,1708594247569,-500.0,0.00035616,2]
[314853055,1708594247578,-500.0,0.00035616,2]
[314853056,1708594247587,-514.2,0.00035616,2]
[314853057,1708594247597,-500.0,0.00035616,2]
[314853058,1708594247606,-500.0,0.00035616,2]
[314853059,1708594247618,-635.0907387,0.00035616,2]
[314853060,1708594247628,-731.14,0.00035616,2]
[314853061,1708594247637,-500.0,0.00035616,2]
[314853062,1708594247646,-500.0,0.00035616,2]
[314853063,1708594247656,-500.0,0.00035616,2]
[314853064,1708594247665,-500.0,0.00035616,2]
[314853065,1708594247675,-500.0,0.00035616,2]
[314853066,1708594247684,-500.0,0.00035616,2]
[314853067,1708594247694,-567.16,0.00035616,2]
[314853068,1708594247703,-500.0,0.00035616,2]
[314853069,1708594247713,-500.0,0.00035616,2]
[314853070,1708594247722,-500.0,0.00035616,2]
[314853071,1708594247731,-762.17,0.00035616,2]
[314853072,1708594247741,-1108.27,0.00035616,2]
[314853073,1708594247750,-924.41,0.00035616,2]
[314853074,1708594247759,-522.61,0.00035616,2]
[314853075,1708594247771,-500.0,0.00035616,2]
[314853076,1708594247781,-500.0,0.00035616,2]
[314853077,1708594247790,-500.0,0.00035616,2]
[314853078,1708594247799,-500.0,0.00035616,2]
[314853079,1708594247808,-500.0,0.00035616,2]
[314853080,1708594247817,-500.0,0.00035616,2]
[314853081,1708594247827,-500.0,0.00035616,2]
[314853082,1708594247837,-1101.71,0.00035616,2]
[314853083,1708594247846,-500.0,0.00035616,2]
[314853084,1708594247855,-500.0,0.00035616,2]
[314853085,1708594247865,-500.0,0.00035616,2]
[314853086,1708594247875,-1710.32,0.00035616,2]
[314853087,1708594247884,-500.0,0.00035616,2]
[314853088,1708594247893,-500.0,0.00035616,2]
[314853089,1708594247902,-672.86,0.00035616,2]
[314853090,1708594247911,-506.92,0.00035616,2]
[314853091,1708594247921,-500.0,0.00035616,2]
[314853092,1708594247930,-485.74329061,0.00035616,2]
[314853093,1708594247939,-500.0,0.00035616,2]
[314853094,1708594247950,-692.25,0.00035616,2]
[314853095,1708594247959,-500.0,0.00035616,2]
[314853096,1708594247968,-500.0,0.00035616,2]
[314853097,1708594247977,-522.97473815,0.00035616,2]
[314853098,1708594247987,-500.0,0.00035616,2]
[314853099,1708594247997,-500.0,0.00035616,2]
[314853100,1708594248006,-638.83,0.00035616,2]
[314853101,1708594248016,-500.0,0.00035616,2]
[314853102,1708594248026,-500.0,0.00035616,2]
[314853103,1708594248036,-500.0,0.00035616,2]
[314853104,1708594248046,-500.0,0.00035616,2]
[314853105,1708594248056,-500.0,0.00035616,2]
[314853106,1708594248066,-552.25,0.00035616,2]
[314853107,1708594248075,-500.0,0.00035616,2]
[314853108,1708594248084,-500.0,0.00035616,2]
[314853109,1708594248180,-500.0,0.00035616,2]
[314853110,1708594248190,-500.0,0.00035616,2]
[314853111,1708594248200,-884.23,0.00035616,2]
[314853112,1708594248209,-500.0,0.00035616,2]
[314853113,1708594248218,-500.0,0.00035616,2]
[314853114,1708594248228,-500.0,0.00035616,2]
[314853115,1708594248236,-500.0,0.00035616,2]
[314853116,1708594248246,-500.0,0.00035616,2]
[314853117,1708594248255,-500.0,0.00035616,2]
[314853118,1708594248264,-500.0,0.00035616,2]
[314853119,1708594248274,-817.49,0.00035616,2]
[314853120,1708594248283,-1000.0,0.00035616,7]
[314853121,1708594248292,-501.06082522,0.00035616,2]
[314853122,1708594248302,-500.0,0.00035616,2]
[314853123,1708594248311,-501.28928603,0.00035616,2]
[314853124,1708594248320,-617.93,0.00035616,2]
[314853125,1708594248330,-562.71,0.00035616,2]
[314853126,1708594248339,-1201.35,0.00035616,2]
[314853127,1708594248349,-500.0,0.00035616,2]
[314853128,1708594248358,-500.0,0.00035616,2]
[314853129,1708594248368,-867.49,0.00035616,2]
[314853130,1708594248377,-500.0,0.00035616,2]
[314853131,1708594248387,-500.0,0.00035616,2]
[314853132,1708594248396,-500.0,0.00035616,2]
[314853133,1708594248406,-500.0,0.00035616,2]
[314853134,1708594248415,-500.0,0.00035616,2]
[314853135,1708594248425,-500.0,0.00035616,2]
[314853136,1708594248434,-500.0,0.00035616,2]
[314853137,1708594248443,-500.0,0.00035616,2]
[314853138,1708594248454,-951.17,0.00035616,2]
[314853139,1708594248465,-500.0,0.00035616,2]
[314853140,1708594248475,-500.0,0.00035616,2]
[314853141,1708594248484,-955.51,0.00035616,2]
[314853142,1708594248494,-500.0,0.00035616,2]
[314853143,1708594248504,-500.0,0.00035616,2]
[314853144,1708594248515,-500.0,0.00035616,2]
[314853145,1708594248524,-500.0,0.00035616,2]
[314853146,1708594248533,-1151.47,0.00035616,2]
[314853147,1708594248545,-500.0,0.00035616,2]
[314853148,1708594248555,-790.35,0.00035616,2]
[314853149,1708594248565,-500.0,0.00035616,2]
[314853150,1708594248573,-500.0,0.00035616,2]
[314853151,1708594248582,-500.0,0.00035616,2]
[314853152,1708594248591,-179.0,0.00035616,2]
[314853153,1708594248601,-587.68,0.00035616,2]
[314853154,1708594248610,-500.0,0.00035616,2]
[314853155,1708594248619,-500.0,0.00035616,2]
[314853156,1708594248629,-722.25,0.00035616,2]
[314853157,1708594248638,-636.29,0.00035616,2]
[314853158,1708594248648,-500.0,0.00035616,2]
[314853159,1708594248657,-500.0,0.00035616,2]
[314853160,1708594248666,-662.17,0.00035616,2]
[314853161,1708594248675,-500.0,0.00035616,2]
[314853162,1708594248684,-734.19,0.00035616,2]
[314853163,1708594248695,-500.0,0.00035616,2]
[314853164,1708594248705,-500.0,0.00035616,2]
[314853165,1708594248714,-504.2406197,0.00035616,2]
[314853166,1708594248724,-500.0,0.00035616,2]
[314853167,1708594248733,-500.0,0.00035616,2]
[314853168,1708594248742,-708.1,0.00035616,2]
[314853169,1708594248752,-868.44,0.00035616,2]
[314853170,1708594248760,-500.0,0.00035616,2]
[314853171,1708594248771,-698.09,0.00035616,2]
[314853172,1708594248781,-500.0,0.00035616,2]
[314853173,1708594248790,-676.45,0.00035616,2]
[314853174,1708594248800,-507.77110263,0.00035616,2]
[314853175,1708594248810,-509.69925623,0.00035616,2]
[314853176,1708594248820,-500.0,0.00035616,2]
[314853177,1708594248829,-500.0,0.00035616,2]
[314853178,1708594248838,-500.0,0.00035616,2]
[314853179,1708594248847,-1311.54,0.00035616,2]
[314853180,1708594248856,-500.0,0.00035616,2]
[314853181,1708594248866,-530.96,0.00035616,2]
[314853182,1708594248875,-557.99299764,0.00035616,2]
[314853183,1708594248884,-1000.0,0.00035616,7]